Cogmind - Beta 15 @@@ ROGUE MODE // 2025.06.06 @ 16:32:29 Player: 7604 Result: Destroyed by G-67 Veteran with Field Laser Performance ------------- Evolutions (7) 3500 Regions Visited (20) 4000 Robots Destroyed (383) 1915 Value Destroyed (20481) 20481 Prototype IDs (103) 2060 Alien Tech Used (2) 400 Bonus (11349) 11349 TOTAL SCORE: 43705 Bonus ------- High Alert Combat Kills 3891 Follower Combat Kills 2437 Network Hubs Disabled 200 Registered with UFD 300 Met Optimus in HQ 500 Met Zhirov 300 MAIN.C Attacked Warlord 500 Warlord Defense Kills 368 Built Enhanced Grunts 300 A7 Reached Mainframe 300 Met R17 at Cetus 500 Met R17 at Research 2000 Scanned by Researcher 500 Friendly Fire -747 Cogmind --------- Core Integrity 0/1300 Matter 198/300 Energy 55/100 System Corruption 38% Temperature Cool (9) Movement Core (50) Location -3/Testing Parts ------- > --- POWER (2) -------- (None) > --- PROPULSION (6) --- (None) > --- UTILITY (10) ----- Machine Analyzer Advanced Visual Processing Unit Advanced Target Analyzer Experimental Core Analyzer Experimental Armor Integrity Analyzer Advanced Thermal Shield Ghost Barrier > --- WEAPON (3) ------- (None) > --- INVENTORY (5) ---- Experimental Matter Compressor (220) Vortex Rifle (18) Improved Potential Cannon Nanosword Peak State ------------ > --- POWER ------------ Light Particle Reactor Improved Quantum Reactor > --- PROPULSION ------- Enhanced Armored Medium Treads Spiked Heavy Treads Biometal Medium Treads Overtuned Huge Scrapsphere > --- UTILITY ---------- High-capacity Storage Unit Advanced Signal Interpreter Experimental Targeting Computer Experimental Core Analyzer Experimental Armor Integrity Analyzer Advanced Kinecellerator Layered Medium Armor Plating Layered Medium Armor Plating Advanced Powered Armor Improved Force Field > --- WEAPON ----------- Helical Railgun Helical Railgun Helical Railgun > --- INVENTORY -------- Light Antimatter Reactor Structural Scanner Advanced Sensor Array Precision Energy Filter Advanced Kinecellerator Improved Weapon Cycler Makeshift Transmission Jammer Experimental Phase Shifter Advanced Thermal Shield Transdimensional Reconstructor Vortex Rifle Vortex Rifle Overtuned Coil Gun Helical Railgun Linear Accelerator Linear Accelerator Smartbomb Launcher Phasing Sabre [Rating: 166] Favorites ----------- Power Ion Engine Engine Ion Engine Power Core Micro Fission Core Reactor Quantum Reactor Propulsion Overtuned Huge Scrapsphere Treads Spiked Heavy Treads Leg Aluminum Leg Wheel Overtuned Huge Scrapsphere Hover Unit Improved Antigrav System Utility High-capacity Storage Unit Device Scrap Suit Storage High-capacity Storage Unit Processor Experimental Targeting Computer Hackware Makeshift System Shield Protection Centrium Medium Armor Plating Weapon Improved Light Cannon Energy Gun Overtuned Beamcaster Energy Cannon Advanced Plasma Cannon Ballistic Gun Overtuned Railgun Ballistic Cannon Improved Light Cannon Launcher Heavy Rocket Launcher Special Weapon Molecular Deconstructor Impact Weapon Shock Maul Slashing Weapon Phasing Sabre Piercing Weapon Heavy Pick Special Melee Weapon Datajack Build | -11 -10 -10 -9 -6 -6 -6 -6 -6 -5 -5 -5 -5 -4 -4 -4 -4 -4 -3 -3 -3 ------- Run | Yrd Mat Sub Scr Fac Ext Cet Arc Hub Fac Upp Upp Zhi Pro Fac Upp Upp War Pro Res Tes Slots Evolved 14 | . . . . 8 . . . . 2 . . . . 2 . . . . 2 . Power 1 | . . . . 1 . . . . . . . . . . . . . . . . Propulsion 4 | . . . . 3 . . . . 1 . . . . . . . . . . . Utility 8 | . . . . 4 . . . . 1 . . . . 2 . . . . 1 . Weapon 1 | . . . . . . . . . . . . . . . . . . . 1 . Parts Attached 301 | 2 12 10 6 20 34 8 5 11 17 1 3 5 . 39 3 4 11 12 33 65 Power 39 | . 1 . 1 2 7 2 . 1 4 . 1 . . 7 . 1 1 . 3 8 Engine 9 | . 1 . 1 1 3 . . 1 1 . . . . . . . . . . 1 Core 10 | . . . . . 3 . . . 2 . 1 . . 3 . . . . . 1 Reactor 20 | . . . . 1 1 2 . . 1 . . . . 4 . 1 1 . 3 6 Propulsion 75 | . 4 3 4 3 12 2 1 . 2 . . . . 13 1 1 2 1 4 22 Treads 48 | . 3 1 2 3 10 2 1 . 1 . . . . 12 . . 2 1 4 6 Leg 8 | . 1 . . . . . . . . . . . . . . . . . . 7 Wheel 18 | . . 2 2 . 2 . . . 1 . . . . 1 1 1 . . . 8 Hover 1 | . . . . . . . . . . . . . . . . . . . . 1 Flight . | . . . . . . . . . . . . . . . . . . . . . Utility 126 | 1 3 4 1 8 13 2 4 7 11 . . 2 . 16 2 2 5 6 14 25 Device 71 | 1 2 . . 6 6 . 4 7 6 . . 1 . 10 1 1 2 4 6 14 Storage 8 | . 1 1 1 . 1 . . . . . . . . . . . . 1 1 2 Processor 14 | . . . . . 2 . . . 2 . . . . 3 . . 1 . 2 4 Hackware 3 | . . . . . 1 . . . . . . . . 1 . . . . . 1 Protection 30 | . . 3 . 2 3 2 . . 3 . . 1 . 2 1 1 2 1 5 4 Artifact . | . . . . . . . . . . . . . . . . . . . . . Weapon 61 | 1 4 3 . 7 2 2 . 3 . 1 2 3 . 3 . . 3 5 12 10 Energy Gun 11 | 1 2 . . . . 1 . . . . 1 . . 2 . . 2 . . 2 Energy Cannon 6 | . . . . . . . . . . . . 2 . . . . 1 . . 3 Ballistic Gun 15 | . 1 1 . 3 . 1 . 1 . . 1 . . . . . . 1 4 2 Ballistic Cannon 14 | . . 2 . 2 1 . . 1 . . . . . . . . . 2 5 1 Launcher 4 | . . . . 1 . . . . . . . . . . . . . 2 1 . Special Weapon 1 | . . . . . . . . . . . . . . 1 . . . . . . Impact Weapon 2 | . . . . . . . . . . 1 . . . . . . . . 1 . Slashing Weapon 4 | . . . . . 1 . . 1 . . . . . . . . . . 1 1 Piercing Weapon 1 | . . . . 1 . . . . . . . . . . . . . . . . Special Melee Weapon 3 | . 1 . . . . . . . . . . 1 . . . . . . . 1 Unidentified Prototypes 49 | . . . . 3 1 4 . 3 4 1 . 4 . 1 . . 4 . 9 15 Corrupted Parts 3 | . . . . . 2 1 . . . . . . . . . . . . . . System Corruption 13 | . . . . . 6 7 . . . . . . . . . . . . . . Parts Lost 126 | . 3 2 . 6 5 . . 2 9 2 1 . 1 31 3 4 1 3 10 43 Power 21 | . 1 . . 1 1 . . . 3 . 1 . . 5 . 2 . . 1 6 Propulsion 38 | . 1 1 . 2 3 . . 1 1 . . . . 7 3 1 . . 1 17 Utility 49 | . . 1 . 3 1 . . 1 3 . . . 1 13 . 1 1 3 7 14 Weapon 18 | . 1 . . . . . . . 2 2 . . . 6 . . . . 1 6 Highest Loss Streak 11 | . 1 1 . 3 3 . . 1 3 1 1 . 1 10 2 1 1 1 10 11 To Critical Strikes 1 | . . . . . . . . . 1 . . . . . . . . . . . Average Backups 15 | 6 8 9 12 16 18 17 17 16 15 16 18 18 17 16 17 17 18 18 17 15 Power . | 1 . . 1 . . . . . . 1 . . . . . . . . . . Propulsion 1 | 4 1 . 2 1 . 1 1 1 . . . . . 2 1 . . 1 . . Utility 7 | . 3 4 5 8 9 10 10 9 9 9 9 10 10 7 9 10 10 8 6 6 Weapon 4 | 1 1 1 1 5 6 4 4 4 4 5 7 6 5 3 4 4 5 6 8 8 Tool/Special . | . . . . . . . . . . . . . . . . . . . . . Unused Backups 54 | . 6 . 6 3 8 2 . 4 . . 1 1 . 1 2 . 4 3 5 8 Power 7 | . 1 . 1 . . . . 1 . . . . . . . . . . 2 2 Propulsion 6 | . 3 . 3 . . . . . . . . . . . . . . . . . Utility 26 | . 1 . . 1 7 1 . 2 . . . . . 1 1 . 3 2 2 5 Weapon 13 | . 1 . 1 2 1 1 . . . . 1 1 . . 1 . 1 1 1 1 Tool/Special 2 | . . . 1 . . . . 1 . . . . . . . . . . . . Average Slot Usage (%) 83 | . 99 98 90 79 83 77 79 79 71 81 77 80 81 86 78 77 73 76 78 79 Engine 4 | . 13 14 14 5 2 . . 3 2 . . . . . . . . . . . Core 1 | . . . . . 4 . . . 2 5 5 11 11 1 10 4 . . . . Reactor 3 | . . . . 3 4 12 13 9 3 5 . . . 7 . 4 5 5 6 7 Treads 12 | . 23 24 11 19 14 13 12 12 9 11 11 11 11 19 5 1 6 10 10 7 Wheel 8 | . . 3 15 5 10 6 6 6 5 11 11 11 11 5 9 13 8 5 4 7 Device 12 | . 14 10 . 14 15 13 16 14 13 13 18 17 15 20 15 19 15 12 14 18 Storage 7 | . 14 14 14 6 6 6 6 6 5 5 5 5 5 5 5 5 5 5 4 4 Processor 7 | . . . . . 5 6 6 6 5 5 5 5 5 12 15 15 18 21 17 12 Protection 4 | . . 2 5 8 3 6 2 4 7 8 3 5 5 3 5 1 1 5 4 4 Energy Gun 3 | . 18 7 . . . 1 . . . 1 5 . 3 3 10 10 9 . . 1 Ballistic Gun 3 | . 7 5 . 5 7 7 13 12 8 3 3 2 3 . . . . 4 4 2 Ballistic Cannon 5 | . . 15 18 1 2 . . . . . . . . . . . . 5 7 2 Special Melee Weapon 1 | . 1 . 9 . . . . . . . . . . . . . . . . . Peak Build Rating 166 | 7 11 30 31 72 82 103 104 111 125 103 102 104 110 131 115 111 130 142 166 159 Average Rating 81 | 6 10 11 24 61 70 96 100 102 109 99 96 96 104 111 102 107 119 133 143 129 On Entrance 82 | 6 7 10 30 19 55 82 103 104 105 98 97 100 98 105 109 102 103 130 131 131 Naked Turns . | . . . . . . . . . . . . . . . . . . . . . Heaviest Build 213 | 12 21 213 213 98 105 107 107 107 100 97 86 81 90 106 91 92 104 131 149 142 Greatest Support 160 | 20 40 40 46 59 90 80 110 110 160 30 30 30 107 120 120 60 150 150 150 105 Greatest Overweight (x) 33 | . . 5 18 4 5 5 33 5 4 3 2 2 2 5 4 2 5 6 7 25 Average Overweight (x) 2 | . . . 4 3 2 4 8 3 3 2 2 2 1 2 2 1 2 3 4 4 Largest Inventory Capacity 35 | 8 10 35 35 20 20 20 20 20 20 20 20 20 20 20 20 20 20 20 20 20 Average Capacity 20 | 8 9 11 28 20 20 20 20 20 20 20 20 20 20 20 20 20 20 20 20 19 Most Carried 28 | 7 10 25 28 20 20 20 20 20 20 20 20 20 20 20 20 19 20 20 20 20 Average Carried 18 | 6 8 10 22 18 19 19 20 19 17 17 19 19 19 18 19 17 19 19 18 17 Final Capacity 35 | 8 10 35 20 20 20 20 20 20 20 20 20 20 20 20 20 20 20 20 20 5 Final Carried 25 | 7 10 25 20 19 20 20 20 20 18 20 20 20 20 19 19 19 18 20 13 5 Class Distribution -------------------- 31% | Scavenger-Mutant 13% | Scavenger-Scrapper 10% | Hauler-Mutant 10% | Mutant 9% | Commander-Scrapper 7% | Derelict-Mutant 5% | Scrapper 4% | Scavenger-Gunner 3% | Scavenger-Assassin 3% | Scavenger-Tank Dominant Class ---------------- Mutant | -10/Materials Mutant | -10/Subcaves Hauler-Mutant | -9/Scraptown Scrapper | -6/Factory Commander-Scrapper | -6/Extension Commander-Scrapper | -6/Cetus Commander-Scrapper | -6/Archives Scavenger-Scrapper | -6/Hub_04(d) Scavenger-Mutant | -5/Factory Scavenger-Mutant | -5/Upper Caves Scavenger-Mutant | -5/Upper Caves Scavenger-Mutant | -5/Zhirov Scavenger-Mutant | -4/Proximity Caves Scavenger-Mutant | -4/Factory Scavenger-Scrapper | -4/Upper Caves Scavenger-Scrapper | -4/Upper Caves Scavenger-Scrapper | -4/Warlord Scavenger-Mutant | -3/Proximity Caves Scavenger-Gunner | -3/Research Scavenger-Mutant | -3/Testing Resources | -11 -10 -10 -9 -6 -6 -6 -6 -6 -5 -5 -5 -5 -4 -4 -4 -4 -4 -3 -3 -3 ----------- Run | Yrd Mat Sub Scr Fac Ext Cet Arc Hub Fac Upp Upp Zhi Pro Fac Upp Upp War Pro Res Tes Matter Collected 16497 | 226 249 366 79 825 1632 403 308 975 1214 211 115 108 202 1094 87 126 204 1504 2168 4401 Remotely 236 | . . . . . 236 . . . . . . . . . . . . . . . Salvage Created 21573 | 26 648 121 . 799 2649 311 230 1571 1456 236 156 227 374 2455 506 1128 186 1378 1347 5769 Parts 953 | 3 46 11 . 44 112 14 21 88 65 9 5 2 16 88 11 33 5 41 64 275 Haulers Intercepted 12 | . 2 . . . 2 . . 1 2 . . . . 2 . . . . 2 1 Recyclers Shooed 6 | 1 . . . . 2 . . . 1 . . . . 1 . . . . . 1 Parts Field Recycled . | . . . . . . . . . . . . . . . . . . . . . Retrieved Matter . | . . . . . . . . . . . . . . . . . . . . . Parts Self-Destructed 113 | . . 9 . . . . . . . 6 3 2 15 . 10 30 . 38 . . Prevented 1 | . . . . . . . . . . . . . . . . 1 . . . . Kills | -11 -10 -10 -9 -6 -6 -6 -6 -6 -5 -5 -5 -5 -4 -4 -4 -4 -4 -3 -3 -3 ------- Run | Yrd Mat Sub Scr Fac Ext Cet Arc Hub Fac Upp Upp Zhi Pro Fac Upp Upp War Pro Res Tes Combat Hostiles Destroyed 300 | . 14 4 . 14 23 4 1 22 19 8 2 . 6 33 7 17 3 24 29 70 Melee 10 | . . . . 2 5 . . . . . . . . 2 . . . . . 1 Guns 165 | . 14 . . 8 13 4 1 19 17 1 1 . 6 16 5 12 2 9 8 29 Cannons 85 | . . 4 . 1 5 . . . . 1 1 . . 7 . . . 15 14 37 AOE 25 | . . . . 3 . . . 3 2 5 . . . 2 . . . . 7 3 Classes Destroyed 26 | 1 5 1 . 6 5 . . . 1 . . . . . . . . 2 3 2 Worker 15 | . . . . 1 1 . . 8 . . . . . 2 . . . . . 3 Builder 17 | . 1 . . 2 1 . . 1 2 . . . . 2 . . . . . 8 Tunneler 3 | 1 . . . . . . . 1 . . . . . 1 . . . . . . Hauler 12 | . 2 . . . 2 . . 1 2 . . . . 2 . . . . 2 1 Recycler 11 | . 1 . . 1 5 . . . . . . . . 2 . . . . . 2 Mechanic 2 | . . . . . . . . . 1 . . . . . . . . . . 1 Operator 7 | . . . . 2 . . 4 . . . . . . . . . . . . 1 Watcher 6 | . . . . 2 1 . . 1 . . . . . 1 . . . . . 1 Swarmer 42 | . 3 . . 3 . . . 5 3 5 . . . 9 . 4 1 2 7 . Saboteur 1 | . . . . . . . . . . . . . . . . . . . . 1 Grunt 106 | . 11 . . 3 11 . . 3 7 2 . . . 8 4 4 1 8 7 37 Brawler 12 | . . . . 1 . . . . . . . . . . . 3 1 2 . 5 Duelist 11 | . . . . . 1 . . . . 1 . . . . . 4 . 1 . 4 Protector 2 | . . . . . . . . . . . . . . . . . . 1 . 1 Researcher 4 | . . . . . . . . . . . . . . . . . . . . 4 Sentry 23 | . . . . . 5 . 1 4 3 . 1 . 1 2 1 2 . 3 . . Demolisher 5 | . . . . . . . . . . . . . . . . . . 4 1 . Specialist 8 | . . . . . 1 . . 4 . . . . . . . . . . . 3 Hunter 25 | . . . . 4 1 . . . 2 . 1 . . 7 2 . . 2 3 3 Programmer 42 | . . . . 3 . . . 2 4 . . . 5 7 . 1 . . 5 15 Behemoth 2 | . . . . . 1 . . . . . . . . . . . . 1 . . Cetus Guard 4 | . . . . . . 4 . . . . . . . . . . . . . . Lightning 4 | . . . . . . . . 4 . . . . . . . . . . . . Striker 3 | . . . . . . . . . . . . . . . . . . . 3 . Executioner 2 | . . . . . . . . . . . . . . . . . . . 2 . Protovariant L 1 | . . . . . . . . . . . . . . . . . . . . 1 Subdweller 4 | . . 4 . . . . . . . . . . . . . . . . . . Scrapoid 1 | . . . . . 1 . . . . . . . . . . . . . . . Thug 4 | . . . . . 3 . . 1 . . . . . . . . . . . . Guerrilla 3 | . . . . . 3 . . . . . . . . . . . . . . . Revision 1 | . . . . . . . . . . . . . . . . . . . 1 . Best Kill Streak 11 | 1 6 1 . 8 4 3 2 4 4 5 1 . 3 7 3 7 1 8 6 11 Combat Bots Only 9 | . 3 1 . 5 3 3 1 3 3 5 1 . 3 7 3 7 1 8 6 9 Max Kills in Single Turn 4 | 1 1 1 . 3 2 1 1 4 2 3 1 . 1 2 1 2 1 1 3 4 Gunslinging 1 | . . . . . . . . . . . . . . . . 1 . . 1 . Exploded 3 | . . . . 3 . . . 3 2 3 . . . 2 . . . . 3 2 Melee 1 | . . . . 1 1 . . . . . . . . 1 . . . . . 1 Uniques/NPCs Destroyed . | . . . . . . . . . . . . . . . . . . . . . Combat | -11 -10 -10 -9 -6 -6 -6 -6 -6 -5 -5 -5 -5 -4 -4 -4 -4 -4 -3 -3 -3 -------- Run | Yrd Mat Sub Scr Fac Ext Cet Arc Hub Fac Upp Upp Zhi Pro Fac Upp Upp War Pro Res Tes Hostile Shots Fired 2898 | . 102 20 . 251 247 23 . 202 204 21 21 . 59 469 57 78 14 230 221 679 Missed 860 | . 29 4 . 84 81 4 . 43 28 9 5 . 14 148 24 28 3 87 57 212 Deflected 1 | . . . . . . . . . . . . . . . . . . . . 1 Hits 2038 | . 73 16 . 167 166 19 . 159 176 12 16 . 45 321 33 50 11 143 164 467 Melee 25 | . . . . . . . . . . 2 . . . . . . 2 . 14 7 Projectile 2013 | . 73 16 . 167 166 19 . 159 176 10 16 . 45 321 33 50 9 143 150 460 AOE 22 | . . . . . . . . . . . . . . . . . 1 16 5 . Critical Strikes 107 | . 1 . . 5 4 3 . 9 13 . . . 3 7 1 2 2 8 15 34 Actively Blocked 1 | . . . . . . . . . . . . . . . . . . . . 1 Part Disruptions 10 | . . . . 1 . . . 3 . . . . . 1 . . . . 2 3 Damage Taken 30974 | . 751 409 . 2299 1422 428 22 1717 2772 273 318 . 585 4959 610 917 247 1609 4028 7608 Core 2807 | . 129 102 . 177 142 14 . 117 110 17 21 . 30 555 37 89 . 50 289 928 Absorbed by Shields 3560 | . . . . 16 340 57 . 323 150 . . . . 53 . . 78 1420 651 472 Reduced by Siege Mode 455 | . . . . . . 35 . 29 80 . 6 . 14 . . . . 149 142 . Redirected to Shielding 31 | . . . . . . . . . . . . . . . . . . . . 31 Ignored by Resistances 5077 | . . . . 176 395 60 . 674 302 . 18 . 365 936 80 27 . 379 . 1665 Regen/Repaired (Parts) 572 | . . . . 12 144 . 30 86 20 30 10 . 14 . 8 20 91 . . 107 Core Remaining (%) 54 | 100 . . 7 . . . . 47 . . . . 82 . . . . 36 . . Volleys Fired 1096 | 2 43 27 . 62 75 19 32 91 76 10 7 . 32 133 23 54 14 115 97 184 Largest 3 | 2 2 2 . 2 2 2 2 2 2 2 2 . 2 2 2 2 2 2 3 3 Hottest 240 | 60 95 66 . 87 87 240 73 75 75 133 192 . 129 200 200 200 200 107 162 200 Shots Fired 1816 | 4 85 54 . 86 138 36 39 175 136 13 15 . 49 145 46 110 26 201 238 220 Gun 1337 | 4 85 . . 64 97 36 39 173 135 3 10 . 49 110 46 110 25 75 119 157 Cannon 457 | . . 54 . 19 41 . . . . 5 5 . . 30 . . 1 126 115 61 Launcher 19 | . . . . 3 . . . 2 1 5 . . . 2 . . . . 4 2 Special 3 | . . . . . . . . . . . . . . 3 . . . . . . Kinetic 1328 | 2 38 54 . 83 138 35 39 173 135 3 2 . 16 11 . . . 198 234 167 Thermal 424 | 2 47 . . . . 1 . . . 5 13 . 33 99 46 110 26 3 . 39 Explosive 19 | . . . . 3 . . . 2 1 5 . . . 2 . . . . 4 2 Electromagnetic 30 | . . . . . . . . . . . . . . 30 . . . . . . Entropic 12 | . . . . . . . . . . . . . . . . . . . . 12 Robot Hit Streak 48 | 3 9 11 . 6 10 13 17 19 26 13 19 . 38 12 16 15 7 46 48 9 Robot Miss Streak 13 | . 2 2 . 3 4 3 3 5 4 1 . . 1 3 2 4 2 4 4 13 Penetration Max 2 | . . . . 1 2 2 1 2 1 . . . . 1 . . . 1 1 2 Secondary Targets 26 | . 5 . . 2 2 . . 2 3 . . . 1 . . 5 . . 4 2 Max Gunslinging Chain 1 | . 1 . . 1 1 . . 1 1 . . . 1 . . 1 . . 1 1 Shots Hit Robots 1354 | 3 53 35 2 63 103 25 30 107 102 9 14 7 41 115 37 80 30 165 169 164 Core Hits 708 | 1 27 14 . 33 59 14 17 56 44 9 7 3 13 55 15 27 9 68 60 177 Critical Kills 124 | . . . . . 17 3 5 4 11 2 . . . 1 . . . 13 . 68 Critical Parts Destroyed 167 | . . . . 1 6 6 8 15 12 . . . . . . . . 17 3 99 Critical Strikes 383 | . 2 . . 3 36 9 13 20 24 2 . . . 15 8 17 6 47 11 170 Burn 43 | . 2 . . . . . . . . . . . . 10 8 17 6 . . . Meltdown 1 | . . . . . . . . . . 1 . . . . . . . . . . Destroy 296 | . . . . 1 26 9 13 20 24 1 . . . 1 . . . 30 3 168 Blast 36 | . . . . 2 9 . . . . . . . . . . . . 17 8 . Corrupt 4 | . . . . . . . . . . . . . . 4 . . . . . . Sever 2 | . . . . . 1 . . . . . . . . . . . . . . 1 Detonate 1 | . . . . . . . . . . . . . . . . . . . . 1 Melee Attacks 135 | . . . 2 27 22 2 . 4 10 . 1 7 . 21 . . 12 . 3 24 Impact . | . . . . . . . . . . . . . . . . . . . . . Slashing 83 | . . . . . 16 . . 4 10 . 1 4 . 21 . . . . 3 24 Piercing 33 | . . . . 27 6 . . . . . . . . . . . . . . . Sneak Attacks 50 | . . . 2 6 9 2 . 1 3 . . 3 . 4 . . 12 . . 8 Combat Hostiles 1 | . . . . . . . . . . . . . . 1 . . . . . . Follow-up Attacks . | . . . . . . . . . . . . . . . . . . . . . Damage Inflicted 46265 | 34 765 711 . 2606 4148 626 365 3985 3179 816 353 309 1355 5004 997 2349 504 4286 6874 6999 Guns 26757 | 34 765 . . 1051 2135 626 365 3183 2698 84 189 . 1355 2566 997 2349 504 1472 3085 3299 Cannons 10921 | . . 711 . 366 960 . . . . 142 164 . . 1693 . . . 2814 2973 1098 Explosions 4451 | . . . . 482 . . . 630 214 590 . . . 295 . . . . 816 1424 Melee 3959 | . . . . 651 1030 . . 107 262 . . 309 . 428 . . . . . 1172 Ramming 177 | . . . . 56 23 . . 65 5 . . . . 22 . . . . . 6 Kinetic 26354 | 12 295 711 . 1417 3095 626 365 3183 2698 84 36 . 338 246 . . . 4205 6058 2985 Thermal 10103 | 22 470 . . 15 . . . . . 142 317 . 1017 2320 997 2349 504 81 . 1869 Explosive 3075 | . . . . 467 . . . 269 214 590 . . . 295 . . . . 816 424 Electromagnetic 2054 | . . . . . . . . 361 . . . . . 1693 . . . . . . Impact . | . . . . . . . . . . . . . . . . . . . . . Slashing 3091 | . . . . . 813 . . 107 262 . . 309 . 428 . . . . . 1172 Piercing 868 | . . . . 651 217 . . . . . . . . . . . . . . . Entropic 543 | . . . . . . . . . . . . . . . . . . . . 543 Highest Corruption 38 | . . . . 3 9 16 16 5 4 4 4 4 10 5 6 6 6 . 7 38 Average Corruption 8 | . . . . 1 7 14 8 2 3 4 4 4 8 4 5 6 6 . 5 18 Corruption Purged 17 | . . . . . . . 17 . . . . . . . . . . . . . Corruption Blocked . | . . . . . . . . . . . . . . . . . . . . . Effects 395 | . . . . 4 69 22 21 24 6 18 10 4 23 15 21 31 2 . 12 113 Message Errors 107 | . . . . 2 22 6 8 9 3 5 1 1 5 3 3 8 . . 2 29 Matter Fused 79 | . . . . . 14 5 4 5 1 3 1 . 6 3 6 8 1 . 2 20 Heat Flow Errors 44 | . . . . 1 6 3 2 2 1 4 2 1 2 1 2 2 . . . 15 Energy Discharges 45 | . . . . 1 7 3 3 2 . 4 2 1 3 . 2 5 1 . 1 10 Parts Rejected 9 | . . . . . . . . 2 . . . . . 1 . . . . . 6 Parts Fused 6 | . . . . . 1 1 . 1 . . . . . 2 . . . . . 1 Data Loss (minor) 42 | . . . . . 8 1 2 1 . 1 1 1 5 2 4 3 . . 2 11 Data Loss (major) 17 | . . . . . 4 1 1 . . . . . . 1 2 2 . . 1 5 Misfires 15 | . . . . . 4 1 1 . . . 2 . 1 1 1 2 . . 1 1 Alerts 8 | . . . . . 1 . . 1 . 1 1 . . . . 1 . . 2 1 Misdirections 2 | . . . . . . . . . . . . . . . . . . . . 2 Weapon Failures 21 | . . . . . 2 1 . 1 1 . . . 1 1 1 . . . 1 12 Overload Shots 1 | . . . . . . 1 . . . . . . . . . . . . . . Overflow Damage 1564 | . . . . 158 144 . . . 110 29 . 49 . 267 . . . 13 174 620 Projectiles 409 | . . . . . 1 . . . . . . . . 116 . . . 13 97 182 Explosions 269 | . . . . 26 . . . . 32 29 . . . . . . . . 77 105 Melee 886 | . . . . 132 143 . . . 78 . . 49 . 151 . . . . . 333 Knockbacks 106 | . . 8 . 2 9 . . 1 . . . . . . . . . 25 18 43 Impact 3 | . . . . . 2 . . 1 . . . . . . . . . . . . Kinetic 99 | . . 8 . 2 7 . . . . . . . . . . . . 24 18 40 Secondary 4 | . . . . . . . . . . . . . . . . . . 1 . 3 Self-Inflicted Damage 422 | . . . . 97 . . . 157 62 37 . . . 19 . . . . . 50 Shots 7 | . . . . 1 . . . 2 1 1 . . . 1 . . . . . 1 Rammed 27 | . . . . 7 5 . 1 7 3 . . . . 3 . . . . . 1 Targets Rammed 28 | . . . . 7 5 . 1 8 3 . . . . 3 . . . . . 1 Kicked . | . . . . . . . . . . . . . . . . . . . . . Crushed 1 | . . . . . . . . 1 . . . . . . . . . . . . Highest Temperature 327 | . 222 . . 180 308 219 227 296 255 181 224 247 205 320 327 302 225 241 99 250 Average Temperature 75 | . 76 . . 43 87 90 59 92 30 66 70 132 106 71 145 103 96 106 30 66 Received Heat Transfer 5562 | . 336 126 . 133 611 54 . 362 680 27 27 . 45 416 124 169 37 480 178 1757 Effects 6 | . . . . . 1 . . 1 . . . . . 2 2 . . . . . Energy Bleed 2 | . . . . . . . . . . . . . . . 2 . . . . . Interference 4 | . . . . . 1 . . 1 . . . . . 2 . . . . . . Siege Activations 33 | . . . . . . 1 1 5 4 . 1 . 4 . . . . 10 7 . Total Turns 637 | . . . . . . 19 7 99 71 . 14 . 55 . . . . 252 120 . Longest Duration 65 | . . . . . . 19 7 33 28 . 14 . 27 . . . . 65 35 . Martial Activations . | . . . . . . . . . . . . . . . . . . . . . Shielding Activations 4 | . . . . . . . . . . . . . . . . . . . . 4 Total Turns 48 | . . . . . . . . . . . . . . . . . . . . 48 Longest Duration 18 | . . . . . . . . . . . . . . . . . . . . 18 Robots Disrupted . | . . . . . . . . . . . . . . . . . . . . . Combat Hostiles . | . . . . . . . . . . . . . . . . . . . . . Robots Corrupted 6 | . . . . 1 . . . . . . . . . 5 . . . . . . Combat Hostiles 5 | . . . . . . . . . . . . . . 5 . . . . . . Parts Fried 21 | . . . . 1 . 1 . 2 . . . . . 17 . . . . . . Impact Corruptions 2 | . . . . 2 . . . . . . . . . . . . . . . . Robots Melted 10 | . . . . . . . . . . 1 . . . 1 2 5 1 . . . Combat Hostiles 10 | . . . . . . . . . . 1 . . . 1 2 5 1 . . . Parts Melted 55 | . 2 1 . . . . . . . . 2 . 2 12 15 18 1 . . 2 Heat Transferred 17883 | 50 1273 . . 50 . . . . . 200 509 . 1110 3801 2600 5750 959 150 . 1431 Parts Sabotaged 3 | . . . . . . . . . . . . . . . . . . . . 3 Parts Stolen . | . . . . . . . . . . . . . . . . . . . . . Parts Stripped . | . . . . . . . . . . . . . . . . . . . . . Power Chain Reactions . | . . . . . . . . . . . . . . . . . . . . . Alert | -11 -10 -10 -9 -6 -6 -6 -6 -6 -5 -5 -5 -5 -4 -4 -4 -4 -4 -3 -3 -3 ------- Run | Yrd Mat Sub Scr Fac Ext Cet Arc Hub Fac Upp Upp Zhi Pro Fac Upp Upp War Pro Res Tes Maximum Alert Level 5 | . . . . 2 4 3 1 2 2 . . . . 3 . . . . 2 5 Low Security (%) 36 | 100 100 . . 54 9 . 41 16 . . . . . 70 . . . . 45 . Level 1 28 | . . . . 18 53 . 58 36 65 . . . . 14 . . . . 28 16 Level 2 20 | . . . . 27 16 64 . 47 34 . . . . 4 . . . . 25 19 Level 3 8 | . . . . . 14 35 . . . . . . . 10 . . . . . 26 Level 4 5 | . . . . . 5 . . . . . . . . . . . . . . 31 Level 5 1 | . . . . . . . . . . . . . . . . . . . . 7 High Security . | . . . . . . . . . . . . . . . . . . . . . Max Security . | . . . . . . . . . . . . . . . . . . . . . Peak Influence 1757 | 5 117 . . 556 1117 754 392 693 586 . . . . 872 . . . . 689 1757 Initial 618 | . . . . . 252 618 261 35 337 . . . . 12 . . . . 116 357 Average 382 | 3 30 . . 186 438 680 235 382 370 . . . . 237 . . . . 295 939 Influence Increases 13352 | 5 434 . . 876 1831 366 267 1530 750 180 50 10 180 1741 160 442 153 520 1265 2592 Destroy 0b10 Robot/C 7060 | . 280 . . 280 840 160 80 620 380 160 40 . 120 900 140 380 80 460 680 1460 Destroy 0b10 Robot/NC 435 | 5 20 . . 40 70 10 20 70 25 . . 10 . 50 . . . 15 10 90 Destroy Leader 1098 | . 54 . . 74 86 . . 166 84 20 10 . 30 176 20 30 . 30 124 194 Allied During Kill 1301 | . . . . . 711 170 100 143 . . . . . 107 . 17 13 . 40 . Trap Triggered on 0b10 10 | . . . . . . . . . . . . . . . . . . . . 10 Successful Hack 386 | . 20 . . 54 55 . . 76 34 . . . . 31 . . . . 54 62 Select Force Hacks 60 | . 60 . . . . . . . . . . . . . . . . . . . Disable Machine 870 | . . . . 135 . 15 60 240 60 . . . . 135 . . . . 30 195 Destroy Structure 1277 | . . . . 98 54 11 7 185 122 . . . . 132 . . . . 282 386 Partial Spotted 15 | . . . . . 15 . . . . . . . . . . . . . . . Lose Combat Pursuer 840 | . . . . 195 . . . 30 45 . . . 30 210 . 15 60 15 45 195 Influence Decreases 11617 | 5 428 6 . 360 1242 817 821 941 888 611 170 10 160 929 725 521 321 367 801 1494 Entered New Map 2706 | . . 4 . . 264 487 393 65 352 205 23 . . 8 309 51 188 20 57 280 Time Decay 6637 | 5 408 2 . 300 638 270 368 506 446 386 137 10 160 582 386 410 48 317 624 634 Lost Part 1209 | . 20 . . 60 50 . . 20 90 20 10 . . 299 30 40 10 30 100 430 Lost Ally 615 | . . . . . 140 60 60 200 . . . . . 40 . 20 75 . 20 . Purge Threat 450 | . . . . . 150 . . 150 . . . . . . . . . . . 150 Squads Dispatched 92 | . 6 . . 12 4 . . 9 6 . . . . 15 . 1 . . 13 26 Investigation 25 | . 4 . . 3 2 . . . 2 . . . . 5 . . . . 6 3 Extermination 17 | . . . . 3 . . . 2 2 . . . . 4 . . . . . 6 Reinforcement 32 | . 2 . . 3 1 . . 6 2 . . . . 5 . . . . 6 7 Assault 7 | . . . . . 1 . . . . . . . . 1 . 1 . . . 4 Garrison 11 | . . . . 3 . . . 1 . . . . . . . . . . 1 6 Intercept . | . . . . . . . . . . . . . . . . . . . . . Searches Triggered . | . . . . . . . . . . . . . . . . . . . . . Construction Impeded 9 | . . . . . 1 . . 1 1 . . . . 2 . . . . . 4 Haulers Reinforced 3 | . . . . . . . . . 1 . . . . . . . . . 1 1 Active Scanning Responses . | . . . . . . . . . . . . . . . . . . . . . Cargo Convoy Interrupts 2 | . . . . 1 . . . . . . . . . 1 . . . . . . Stealth | -11 -10 -10 -9 -6 -6 -6 -6 -6 -5 -5 -5 -5 -4 -4 -4 -4 -4 -3 -3 -3 --------- Run | Yrd Mat Sub Scr Fac Ext Cet Arc Hub Fac Upp Upp Zhi Pro Fac Upp Upp War Pro Res Tes Distress Signals 67 | . 2 . . 3 3 2 . 4 1 . . . . 10 . . . 31 7 4 Communications Jammed 3 | . . . . . . . . . 3 . . . . . . . . . . . Distress Signals 3 | . . . . . . . . . 3 . . . . . . . . . . . Times Spotted 539 | . 16 6 . 47 47 10 18 45 27 8 2 . 8 73 9 20 19 31 49 104 Peak Tracking Total 16 | . 5 2 . 14 7 5 2 5 6 5 1 . 3 10 3 7 16 9 9 10 Tactical Retreats 36 | . . . . 6 . . . 2 2 . . . 2 8 . 1 1 1 3 10 Traps | -11 -10 -10 -9 -6 -6 -6 -6 -6 -5 -5 -5 -5 -4 -4 -4 -4 -4 -3 -3 -3 ------- Run | Yrd Mat Sub Scr Fac Ext Cet Arc Hub Fac Upp Upp Zhi Pro Fac Upp Upp War Pro Res Tes Traps Triggered 15 | . 2 . . . 4 . . . . . . . . 1 . . . . 5 3 Indirectly . | . . . . . . . . . . . . . . . . . . . . . Trap Hack Attempts 79 | . 47 . . . . . . . . . . . . . . . . . . 32 Triggered . | . . . . . . . . . . . . . . . . . . . . . Disarmed . | . . . . . . . . . . . . . . . . . . . . . Reprogrammed 4 | . 3 . . . . . . . . . . . . . . . . . . 1 Reused 1 | . . . . . . . . . . . . . . . . . . . . 1 Traps Extracted . | . . . . . . . . . . . . . . . . . . . . . Installed . | . . . . . . . . . . . . . . . . . . . . . Triggered 1 | . . . . . . . . . . . . . . . . . . . . 1 Machines | -11 -10 -10 -9 -6 -6 -6 -6 -6 -5 -5 -5 -5 -4 -4 -4 -4 -4 -3 -3 -3 ---------- Run | Yrd Mat Sub Scr Fac Ext Cet Arc Hub Fac Upp Upp Zhi Pro Fac Upp Upp War Pro Res Tes Machines Disabled 66 | . 1 . . 9 1 1 4 16 4 . 1 . . 9 . . 1 2 2 15 Max in Single Turn 4 | . 1 . . 4 1 1 1 3 1 . 1 . . 1 . . 1 1 1 1 Garrison Access 3 | . . . . . . . . . . . . . . 1 . . . . 2 . Network Hub 1 | . . . . . . . . 1 . . . . . . . . . . . . Machines Repaired . | . . . . . . . . . . . . . . . . . . . . . Machines Dismantled . | . . . . . . . . . . . . . . . . . . . . . Machines Sabotaged . | . . . . . . . . . . . . . . . . . . . . . Overloaded Fab Kills . | . . . . . . . . . . . . . . . . . . . . . Hacking | -11 -10 -10 -9 -6 -6 -6 -6 -6 -5 -5 -5 -5 -4 -4 -4 -4 -4 -3 -3 -3 --------- Run | Yrd Mat Sub Scr Fac Ext Cet Arc Hub Fac Upp Upp Zhi Pro Fac Upp Upp War Pro Res Tes Machines Accessed 94 | . 9 3 6 10 12 1 1 6 5 . . 4 . 15 . . 3 . 12 7 Terminals 46 | . 6 . . 5 11 1 . 6 4 . . . . 6 . . . . 3 4 Fabricators 4 | . . . . 1 . . . . 1 . . . . . . . . . 1 1 Repair Stations 4 | . 1 . . . . . . . . . . . . . . . . . 2 1 Recycling Units 14 | . 2 . . 3 1 . . . . . . . . 4 . . . . 4 . Scanalyzers 4 | . . . . 1 . . . . . . . . . 2 . . . . . 1 Garrison Access 5 | . . . . . . . . . . . . . . 3 . . . . 2 . Total Hacks 291 | . 25 7 25 29 27 1 1 26 18 . . 17 . 57 . . 6 . 33 19 Successful 162 | . 15 7 25 14 12 . 1 15 7 . . 17 . 24 . . 6 . 10 9 Failed 128 | . 9 . . 15 15 1 . 11 11 . . . . 33 . . . . 23 10 Catastrophic 29 | . . . . 3 3 1 . . 4 . . . . 9 . . . . 7 2 Database Lockouts 1 | . 1 . . . . . . . . . . . . . . . . . . . Manual 120 | . 20 . . 17 8 1 . 17 11 . 1 . . 24 . . . . 18 3 Terminals 156 | . 19 . . 20 25 1 . 26 13 . . . . 32 . . . . 9 11 Fabricators 11 | . . . . 1 . . . . 5 . . . . . . . . . 3 2 Repair Stations 10 | . 1 . . . . . . . . . . . . . . . . . 7 2 Recycling Units 32 | . 5 . . 6 2 . . . . . . . . 9 . . . . 10 . Scanalyzers 16 | . . . . 2 . . . . . . . . . 10 . . . . . 4 Garrison Access 10 | . . . . . . . . . . . . . . 6 . . . . 4 . Terminal Hacks 95 | . 3 7 25 6 8 . 1 8 2 . . 17 . 8 . . 6 . 2 2 Record 29 | . . 5 18 . . . 1 . . . . 5 . . . . . . . . Part Schematic 7 | . . . . 2 . . . . . . . 4 . 1 . . . . . . Robot Analysis 12 | . 1 . 6 . . . . 1 . . . 4 . . . . . . . . Prototype ID Bank 11 | . . . . . 1 . . 1 . . . 4 . 1 . . 4 . . . Open Door 8 | . . 1 . . 5 . . . . . . . . . . . 2 . . . Branch Access Points 2 | . . . . . . . . . 1 . . . . 1 . . . . . . Emergency Access Points 1 | . 1 . . . . . . . . . . . . . . . . . . . Terminal Index 4 | . . . . 1 . . . 1 1 . . . . . . . . . . 1 Alert Level 2 | . . . . . 1 . . . . . . . . 1 . . . . . . Unreport Threat 3 | . . . . . 1 . . 1 . . . . . . . . . . . 1 Locate Traps 4 | . 1 . . 1 . . . 1 . . . . . 1 . . . . . . Patrol Status 1 | . . . . . . . . 1 . . . . . . . . . . . . Hauler Manifests 2 | . . . . . . . . . . . . . . 1 . . . . 1 . Registered Prototypes 1 | . . . . 1 . . . . . . . . . . . . . . . . Zone Layout 6 | . . . . 1 . . . 2 . . . . . 2 . . . . 1 . Proto ID Catalog 1 | . . . 1 . . . . . . . . . . . . . . . . . Release Object 1 | . . 1 . . . . . . . . . . . . . . . . . . Fabricator Hacks 6 | . . . . 1 . . . . 3 . . . . . . . . . . 2 Network Status 2 | . . . . 1 . . . . 1 . . . . . . . . . . . Load Schematic 2 | . . . . . . . . . 1 . . . . . . . . . . 1 Build 2 | . . . . . . . . . 1 . . . . . . . . . . 1 Repair Station Hacks 1 | . . . . . . . . . . . . . . . . . . . 1 . Scan Component 1 | . . . . . . . . . . . . . . . . . . . 1 . Recycling Unit Hacks 8 | . 2 . . 2 1 . . . . . . . . 2 . . . . 1 . Retrieve Components 8 | . 2 . . 2 1 . . . . . . . . 2 . . . . 1 . Scanalyzer 7 | . . . . . . . . . . . . . . 4 . . . . . 3 Insert Component 3 | . . . . . . . . . . . . . . 2 . . . . . 1 Analyze 4 | . . . . . . . . . . . . . . 2 . . . . . 2 Garrison Access Hacks 3 | . . . . . . . . . . . . . . 1 . . . . 2 . Seal Access 3 | . . . . . . . . . . . . . . 1 . . . . 2 . Unauthorized Hacks 42 | . 10 . . 5 3 . . 7 2 . . . . 9 . . . . 4 2 Terminals 27 | . 8 . . 2 2 . . 7 1 . . . . 5 . . . . 1 1 Track 6 | . . . . . 1 . . 4 . . . . . 1 . . . . . . Botnet 14 | . 2 . . 2 1 . . 2 1 . . . . 4 . . . . 1 1 Disrupt 1 | . . . . . . . . 1 . . . . . . . . . . . . Operators 1 | . 1 . . . . . . . . . . . . . . . . . . . Skim 5 | . 5 . . . . . . . . . . . . . . . . . . . Fabricators 1 | . . . . . . . . . 1 . . . . . . . . . . . Prioritize 1 | . . . . . . . . . 1 . . . . . . . . . . . Repair Stations 1 | . . . . . . . . . . . . . . . . . . . . 1 Patch 1 | . . . . . . . . . . . . . . . . . . . . 1 Recycling Units 13 | . 2 . . 3 1 . . . . . . . . 4 . . . . 3 . Tunnel 2 | . 2 . . . . . . . . . . . . . . . . . . . Fedlink 8 | . . . . 3 . . . . . . . . . 3 . . . . 2 . Scrapoids 2 | . . . . . 1 . . . . . . . . 1 . . . . . . Scraphulk 1 | . . . . . . . . . . . . . . . . . . . 1 . Scanalyzers . | . . . . . . . . . . . . . . . . . . . . . Garrison Access . | . . . . . . . . . . . . . . . . . . . . . Data Cores Recovered 2 | . . . . 1 . . . . . . . . . . . . . . . 1 Used . | . . . . . . . . . . . . . . . . . . . . . Hacking Detections 62 | . 7 . . 9 7 1 . 6 5 . . . . 11 . . . . 11 5 Full Trace Events 7 | . . . . . 1 . . . 2 . . . . 1 . . . . 2 1 Feedback Events . | . . . . . . . . . . . . . . . . . . . . . Feedback Blocked . | . . . . . . . . . . . . . . . . . . . . . Robot Schematics Acquired 5 | . . . . . . . . . . . . . . . . . . . . 5 Robots Built . | . . . . . . . . . . . . . . . . . . . . . Authchips . | . . . . . . . . . . . . . . . . . . . . . Time . | . . . . . . . . . . . . . . . . . . . . . Total Robot Build Rating . | . . . . . . . . . . . . . . . . . . . . . Part Schematics Acquired 16 | . . . . 2 . . . . . . . 4 . 2 . . . . . 8 Parts Built 3 | . . . . . . . . . 2 . . . . . . . . . . 1 Authchips . | . . . . . . . . . . . . . . . . . . . . . Time 126 | . . . . . . . . . 42 . . . . . . . . . . 84 Total Part Build Rating 14 | . . . . . . . . . 8 . . . . . . . . . . 6 Parts Repaired . | . . . . . . . . . . . . . . . . . . . . . Time . | . . . . . . . . . . . . . . . . . . . . . Parts Recycled . | . . . . . . . . . . . . . . . . . . . . . Recycled Matter . | . . . . . . . . . . . . . . . . . . . . . Retrieved Matter . | . . . . . . . . . . . . . . . . . . . . . Retrieved Components 35 | . 19 . . 3 1 . . . . . . . . 9 . . . . 3 . Parts Scanalyzed 3 | . . . . . . . . . . . . . . 2 . . . . . 1 Part Schematics Acquired 2 | . . . . . . . . . . . . . . 1 . . . . . 1 Parts Damaged . | . . . . . . . . . . . . . . . . . . . . . Bothacking | -11 -10 -10 -9 -6 -6 -6 -6 -6 -5 -5 -5 -5 -4 -4 -4 -4 -4 -3 -3 -3 ------------ Run | Yrd Mat Sub Scr Fac Ext Cet Arc Hub Fac Upp Upp Zhi Pro Fac Upp Upp War Pro Res Tes Used RIF Installer . | . . . . . . . . . . . . . . . . . . . . . Robots Hacked 10 | . . . 2 . . 2 . . . . . 3 . . . . 3 . . . Non-combat . | . . . . . . . . . . . . . . . . . . . . . Combat 10 | . . . 2 . . 2 . . . . . 3 . . . . 3 . . . Robot Hacks Applied 10 | . . . 2 . . 2 . . . . . 3 . . . . 3 . . . parse_system 10 | . . . 2 . . 2 . . . . . 3 . . . . 3 . . . Relay Couplers Released . | . . . . . . . . . . . . . . . . . . . . . Fabnet Peak Effective % . | . . . . . . . . . . . . . . . . . . . . . Robots Rewired 19 | . . . . . 12 . . . . . . . . . . 2 5 . . . Allies Hacked . | . . . . . . . . . . . . . . . . . . . . . Hacks Repelled . | . . . . . . . . . . . . . . . . . . . . . Allies | -11 -10 -10 -9 -6 -6 -6 -6 -6 -5 -5 -5 -5 -4 -4 -4 -4 -4 -3 -3 -3 -------- Run | Yrd Mat Sub Scr Fac Ext Cet Arc Hub Fac Upp Upp Zhi Pro Fac Upp Upp War Pro Res Tes Total Allies 42 | . . . . . 24 5 . . . . . . . 5 . 2 5 . 1 . Largest Group 18 | . . . . . 16 18 16 12 . . . . . 5 . 2 5 . 1 . Highest-Rated Group 954 | . . . . . 594 954 835 617 . . . . . 235 . 77 279 . 139 . Highest-Rated Ally 159 | . . . . . 159 144 144 96 . . . . . 47 . 47 64 . 139 . Total Orders 3 | . . . . . . . . 1 . . . . . . . . 2 . . . STAY 3 | . . . . . . . . 1 . . . . . . . . 2 . . . Ally Attacks 437 | . . . . . 174 41 24 85 . . . . . 64 . 8 16 . 25 . Total Damage 11600 | . . . . . 3802 1061 536 2166 . . . . . 1759 . 232 557 . 1487 . Kills 67 | . . . . . 23 6 3 12 . . . . . 14 . 2 1 . 6 . Allies Corrupted 5 | . . . . . . . . 5 . . . . . . . . . . . . Allies Melted 1 | . . . . . . . . . . . . . . . . . 1 . . . Intel | -11 -10 -10 -9 -6 -6 -6 -6 -6 -5 -5 -5 -5 -4 -4 -4 -4 -4 -3 -3 -3 ------- Run | Yrd Mat Sub Scr Fac Ext Cet Arc Hub Fac Upp Upp Zhi Pro Fac Upp Upp War Pro Res Tes Active Infowar (turns) 17096 | 9 623 802 . 1021 1781 . . 347 968 917 518 213 189 1452 797 751 788 1607 2078 2235 Optics 41 | . . . . . . . . . . . . . . . . . . . . 41 Sensors 3613 | . . . . . . . . . 1 . . . . 788 . . . . 1626 1198 IFF 29 | . . . . 29 . . . . . . . . . . . . . . . . Terrain 498 | . 50 . . 369 . . . . . . . . . 79 . . . . . . Structural 8049 | . . . . 129 58 . . 283 98 . . . . 1141 797 751 788 735 1543 1726 Seismic 6301 | 9 573 802 . 964 1139 . . 316 749 895 473 213 168 . . . . . . . Machine Analysis 2060 | . . . . . . . . . . . . . . . . . . . . 2060 Jamming 5656 | . . . . 57 1033 . . . 437 353 205 . 32 64 . . . 1108 2057 310 Robot Analysis Total 12 | . 1 . 6 . . . . 1 . . . 4 . . . . . . . . Derelict Logs Recovered 10 | . . . 3 . . . . . . . 2 . 1 . 2 2 . . . . Drone Launches . | . . . . . . . . . . . . . . . . . . . . . Drone Recoveries . | . . . . . . . . . . . . . . . . . . . . . Exploration | -11 -10 -10 -9 -6 -6 -6 -6 -6 -5 -5 -5 -5 -4 -4 -4 -4 -4 -3 -3 -3 ------------- Run | Yrd Mat Sub Scr Fac Ext Cet Arc Hub Fac Upp Upp Zhi Pro Fac Upp Upp War Pro Res Tes Turns Passed 29288 | 25 1938 1047 5584 1312 2262 589 859 1367 1117 917 556 213 586 1858 909 984 962 1840 2128 2235 Spaces Moved 17318 | 13 1034 562 2761 905 1244 352 196 725 665 810 495 181 402 1149 883 1002 821 971 1177 970 Core 41 | . . . 8 . . . 26 . . . . . . . . . . . . 7 Treads 3787 | . 810 468 937 26 232 1 25 220 10 . . . 92 227 4 . 47 382 280 26 Legs 288 | 13 224 . . . . . . . . . . . . . . . . . . 51 Wheels 13202 | . . 94 1816 879 1012 351 145 505 655 810 495 181 310 922 879 1002 774 589 897 886 Hover . | . . . . . . . . . . . . . . . . . . . . . Flight . | . . . . . . . . . . . . . . . . . . . . . Fastest Speed 50 | 120 120 110 90 100 96 110 110 110 99 99 99 99 99 90 90 80 80 120 120 50 Average Speed 134 | 120 151 154 196 106 133 115 342 129 109 105 99 99 114 115 91 82 101 137 137 146 Slowest Speed 1700 | 120 160 160 950 186 240 240 1700 240 240 111 99 99 165 245 225 90 160 160 260 1300 Overloaded Moves . | . . . . . . . . . . . . . . . . . . . . . Propulsion Burnouts . | . . . . . . . . . . . . . . . . . . . . . Robots Hopped . | . . . . . . . . . . . . . . . . . . . . . Potential Cave-ins . | . . . . . . . . . . . . . . . . . . . . . Cave-ins Triggered . | . . . . . . . . . . . . . . . . . . . . . Teleports 1 | . . . . . . . . . . . . . . . . . . . 1 . Exploration Rate (%) 64 | 2 100 29 89 24 97 75 82 54 14 74 77 61 47 34 97 94 83 89 41 83 Regions Visited 20 Branch Regions 15 Pre-discovered Areas 11 | . 4 . 1 1 . . . . . . 1 3 . . . 1 . . . . Known Exits Taken 8 | . . . . 1 . . . 1 1 . . . . 1 1 1 1 1 . . Unknown Exits Taken 12 | 1 1 1 1 . 1 1 1 . . 1 1 1 1 . . . . . 1 . Scrap Searched 34 | . . 8 6 . . . . . . 3 2 . 3 . 4 4 . 4 . . Spaces Dug 129 | . . . . 45 . . . 8 29 . . . . 12 . 3 . 3 16 13 Terrain Destroyed 1005 | . . . . 113 62 6 6 271 70 43 1 . 10 45 5 17 4 23 125 204 Melee 31 | . . . . 11 . . . 3 4 . . . . 10 . . . . 2 1 Projectile 483 | . . . . 61 62 6 5 86 49 1 1 . 10 26 5 17 4 23 71 56 AOE 406 | . . . . 41 . . . 181 17 42 . . . 9 . . . . 52 64 Terrain Rammed . | . . . . . . . . . . . . . . . . . . . . . Walls Destroyed . | . . . . . . . . . . . . . . . . . . . . . Machines Disabled . | . . . . . . . . . . . . . . . . . . . . . Actions | -11 -10 -10 -9 -6 -6 -6 -6 -6 -5 -5 -5 -5 -4 -4 -4 -4 -4 -3 -3 -3 --------- Run | Yrd Mat Sub Scr Fac Ext Cet Arc Hub Fac Upp Upp Zhi Pro Fac Upp Upp War Pro Res Tes Total 21430 | 17 1323 682 2936 1122 1691 511 349 984 893 854 543 211 477 1522 964 1103 936 1274 1494 1544 Wait 1436 | . 166 60 120 44 110 99 105 94 73 22 18 1 33 77 41 25 44 136 70 98 Move 17299 | 12 1033 561 2760 904 1243 351 195 724 664 809 494 180 401 1149 882 1001 820 970 1176 970 Hop . | . . . . . . . . . . . . . . . . . . . . . Pick Up 213 | 1 11 11 24 13 18 6 1 8 6 3 4 3 2 24 7 4 6 11 22 28 Fast Attach 198 | 1 . 2 5 7 25 9 8 9 8 . 1 6 . 25 1 . 7 4 22 58 Attach 144 | . 3 3 3 11 4 . . 2 12 1 1 2 1 34 1 4 2 5 15 40 Detach 93 | . . . 6 6 5 1 2 3 9 . . 1 . 18 . 1 3 2 5 31 Swap 316 | 1 12 12 2 30 42 6 . 25 31 9 11 2 7 22 4 5 14 19 39 23 Drop 256 | . 7 6 14 11 35 18 5 16 1 . 6 9 1 14 5 . 13 12 37 46 Fire 1096 | 2 43 27 . 62 75 19 32 91 76 10 7 . 32 133 23 54 14 115 97 184 Melee 135 | . . . 2 27 22 2 . 4 10 . 1 7 . 21 . . 12 . 3 24 Ram 3 | . . . . . . . 1 1 . . . . . . . . . . . 1 Kick . | . . . . . . . . . . . . . . . . . . . . . Crush 25 | . . . . 7 5 . . 7 3 . . . . 2 . . . . . 1 Escape Stasis 48 | . . . . . 32 . . . . . . . . . . . . . 8 8 Rewire 89 | . 1 . . . 75 . . . . . . . . 3 . 9 1 . . . Trap 79 | . 47 . . . . . . . . . . . . . . . . . . 32 Miscellaneous . | . . . . . . . . . . . . . . . . . . . . . Route ------- -11/Scrapyard -10/Materials (discovered 6 exits: *Mat x3 / [*Min x2] / *Sub) -10/Subcaves (discovered 4 exits: *Mat x2 / Rec / *Scr) -9/Scraptown (discovered 2 exits: *Fac x2) -6/Factory (discovered 7 exits: Fac x3 / Low x2 / *Ext x2) -6/Extension (discovered 2 exits: *Fac / *Cet) -6/Cetus (discovered 2 exits: *Fac / *Arc) -6/Archives (discovered 3 exits: *Fac / *Hub x2) -6/Hub_04(d) (discovered 3 exits: *Fac x3) -5/Factory (discovered 2 exits: *Upp x2) -5/Upper Caves -5/Upper Caves (discovered 2 exits: *Fac / *Zhi) -5/Zhirov -4/Proximity Caves -4/Factory (discovered 5 exits: *Res x2 / *Upp x2 / Arm) -4/Upper Caves -4/Upper Caves (discovered 2 exits: *Res / *War) -4/Warlord -3/Proximity Caves -3/Research (discovered 2 exits: *Res / *Tes) -3/Testing (discovered 1 exit: *Res) History --------- Turn | Location | Event 1 | -11/Scrapyard | Discovered new exit (range 2) 26 | -11/Scrapyard | Entered Materials 27 | -10/Materials | Met a group of wandering Federalists 78 | -10/Materials | Discovered new exit (range 14) 129 | -10/Materials | Discovered new exit (range 9) 156 | -10/Materials | Central database locked down 231 | -10/Materials | Discovered new exit (range 11) 244 | -10/Materials | Discovered new exit (range 8) 314 | -10/Materials | Build established: Mutant 709 | -10/Materials | Discovered new exit (range 6) 840 | -10/Materials | Learned location of 2 exits from Subcaves 930 | -10/Materials | Learned 2 Storage zone layouts 963 | -10/Materials | Identified exit to Materials 997 | -10/Materials | Learned 2 Mines zone layouts 1148 | -10/Materials | Learned location of 2 exits from Subcaves 1294 | -10/Materials | Core integrity fell below 50% 1584 | -10/Materials | Build established: Scavenger-Mutant 1964 | -10/Materials | Entered Subcaves 1965 | -10/Subcaves | Continued accompanying wandering Federalists (2) 1965 | -10/Subcaves | Approached by a straggling Scientist 1965 | -10/Subcaves | Identified exit to Materials 1966 | -10/Subcaves | Identified exit to Recycling 1982 | -10/Subcaves | Shifting Twisted Machinery released Sub. Monowheel 1986 | -10/Subcaves | A swath of the cavern ceiling suddenly collapsed 2025 | -10/Subcaves | Shifting Twisted Machinery released Battle Cannon 2029 | -10/Subcaves | Shifting Twisted Machinery released Battle Cannon 2049 | -10/Subcaves | Visited Clippyterm 2054 | -10/Subcaves | Learned 40 Factory zone layouts 2054 | -10/Subcaves | Learned Factory garrison access intel 2208 | -10/Subcaves | Wandering Federalist uncovered a shortcut to Scraptown 2609 | -10/Subcaves | Core integrity fell below 20% 2728 | -10/Subcaves | Build established: Mutant 2812 | -10/Subcaves | Disturbed a concealed Subdweller 2973 | -10/Subcaves | Found SUBCON Basin 3011 | -10/Subcaves | Entered Scraptown 3189 | -9/Scraptown | Visited UFD Registry 3189 | -9/Scraptown | Registered with UFD as "Flashsys" 3252 | -9/Scraptown | Build established: Hauler-Mutant 3277 | -9/Scraptown | Heard Great Nut preacher, LISTEN AND RECITE! 3305 | -9/Scraptown | Visited Shadow of the Wyrm 3335 | -9/Scraptown | Visited Symbiants 3350 | -9/Scraptown | Visited Assassins FH 3385 | -9/Scraptown | Visited Cyclists 3404 | -9/Scraptown | Visited Spacefarers 3420 | -9/Scraptown | Visited Awakened 3460 | -9/Scraptown | Entered Cyclist Reading Room 3745 | -9/Scraptown | Discovered new exit (range 13) 3817 | -9/Scraptown | Scanned Subdweller tech in exchange for log data 3820 | -9/Scraptown | Learned location of Zion (-6) 3822 | -9/Scraptown | Learned location of 1 exit from Research 3823 | -9/Scraptown | Learned Factory security intel 3892 | -9/Scraptown | Visited The Evicted 3940 | -9/Scraptown | Visited Chapter 10 3962 | -9/Scraptown | Visited Science Guys 4014 | -9/Scraptown | Visited DA-N13 Charitable Foundation 4020 | -9/Scraptown | Found DCF Scrap (29 items) 4103 | -9/Scraptown | Visited Supply Room 4137 | -9/Scraptown | Visited Scrapoid Pod Storage 4156 | -9/Scraptown | Visited Modified Component R&D 4244 | -9/Scraptown | Visited Derelict Rescue Squad 4257 | -9/Scraptown | Found DRS Beacon 4300 | -9/Scraptown | Visited Analyses Database 4350 | -9/Scraptown | Visited Curators Association 6310 | -9/Scraptown | Build established: Mutant 6399 | -9/Scraptown | Found Scrap Suit 6400 | -9/Scraptown | Found Scrap Suit 7288 | -9/Scraptown | Build established: Derelict-Mutant 8460 | -9/Scraptown | Met Optimus 8460 | -9/Scraptown | Accepted into 0bPrime 8583 | -9/Scraptown | Discovered new exit (range 5) 8595 | -9/Scraptown | Entered Factory 8595 | -6/Factory | Evolved 8 slots: Power x1, Propulsion x3, Utility x4 8596 | -6/Factory | Identified exit to Factory 8596 | -6/Factory | Identified exit to Extension 8596 | -6/Factory | Identified exit to Lower Caves 8598 | -6/Factory | Loaded intel: 4 garrison access locations 8826 | -6/Factory | Loaded intel: 8 recycling unit locations 8906 | -6/Factory | Build established: Scrapper 9067 | -6/Factory | Learned location of Protoforge (-2) 9324 | -6/Factory | Garrison activated, responded to threat 9450 | -6/Factory | Cargo convoy interrupted 9892 | -6/Factory | Lost 3 parts (1n2u) 9896 | -6/Factory | Discovered exit to Extension (range 12) 9907 | -6/Factory | Entered Extension 10159 | -6/Extension | Lost 3 parts (2n1u) 10350 | -6/Extension | Rescued A7 10557 | -6/Extension | Disrupted transfer network 10615 | -6/Extension | Scrapoid reinforcements arrived 10843 | -6/Extension | Rescued a captive Derelict 10917 | -6/Extension | Build established: Commander-Scrapper 11217 | -6/Extension | Spotted B-75 Beast 11228 | -6/Extension | Spotted B-75 Beast 11229 | -6/Extension | Allies destroyed B-75 Beast 11242 | -6/Extension | Destroyed B-75 Beast 11259 | -6/Extension | Found Scrap Suit 11351 | -6/Extension | Found Scrap Suit 11657 | -6/Extension | First assault squad dispatched 11723 | -6/Extension | Rescued a captive Derelict 11785 | -6/Extension | Rescued a captive Derelict 11787 | -6/Extension | Rescued a captive Derelict 11824 | -6/Extension | Rescued a captive Derelict 11825 | -6/Extension | Rescued a captive Derelict 12070 | -6/Extension | Discovered new exit (range 16) 12071 | -6/Extension | Discovered exit to Factory (range 15) 12169 | -6/Extension | Entered Cetus 12169 | -6/Cetus | Accompanied by 14 allies (A7) 12174 | -6/Cetus | Acquired a Cetus Manufacturing Module code from A7 12184 | -6/Cetus | Spotted Cetus Guard 12185 | -6/Cetus | Spotted Cetus Guard 12192 | -6/Cetus | Spotted Cetus Guard 12195 | -6/Cetus | Spotted Cetus Guard 12196 | -6/Cetus | Allies destroyed Cetus Guard 12197 | -6/Cetus | Destroyed Cetus Guard 12205 | -6/Cetus | Allies destroyed Cetus Guard 12211 | -6/Cetus | Allies destroyed Cetus Guard 12277 | -6/Cetus | Started Cetus Manufacturing Module 12302 | -6/Cetus | Manufactured an Enhanced Grunt 12326 | -6/Cetus | System corruption reached 10% 12327 | -6/Cetus | Manufactured an Enhanced Grunt 12352 | -6/Cetus | Manufactured an Enhanced Grunt 12377 | -6/Cetus | Manufactured an Enhanced Grunt 12402 | -6/Cetus | Manufactured an Enhanced Grunt 12405 | -6/Cetus | Escorted A7 to Cetus Mainframe 12513 | -6/Cetus | Discovered new exit (range 15) 12544 | -6/Cetus | Spotted Cetus Guard 12544 | -6/Cetus | Spotted Cetus Guard 12547 | -6/Cetus | Spotted Cetus Guard 12548 | -6/Cetus | Spotted Cetus Guard 12560 | -6/Cetus | Allies destroyed Cetus Guard 12560 | -6/Cetus | Destroyed Cetus Guard 12562 | -6/Cetus | Destroyed Cetus Guard 12567 | -6/Cetus | Destroyed Cetus Guard 12583 | -6/Cetus | Discovered exit to Factory (range 15) 12592 | -6/Cetus | Met Revision 17 12758 | -6/Cetus | Entered Archives 12758 | -6/Archives | Accompanied by 16 allies (A7) 12763 | -6/Archives | Received a hacking code to weaken MAIN.C 12813 | -6/Archives | Lost 3 allies 12822 | -6/Archives | Discovered exit to Factory (range 16) 12836 | -6/Archives | Discovered new exit (range 15) 13369 | -6/Archives | Discovered new exit (range 16) 13557 | -6/Archives | Unable to access archive contents 13617 | -6/Archives | Entered Hub_04(d) 13617 | -6/Hub_04(d) | Accompanied by 12 allies 13626 | -6/Hub_04(d) | Discovered exit to Factory (range 16) 13750 | -6/Hub_04(d) | Network Hub disabled 14047 | -6/Hub_04(d) | Discovered exit to Factory (range 15) 14049 | -6/Hub_04(d) | Build established: Scavenger-Scrapper 14059 | -6/Hub_04(d) | Found Prototype Device 14059 | -6/Hub_04(d) | Identified Exp. EM Shield 14396 | -6/Hub_04(d) | Spotted Lightning 14738 | -6/Hub_04(d) | Discovered exit to Factory (range 6) 14822 | -6/Hub_04(d) | Spotted Lightning 14827 | -6/Hub_04(d) | Destroyed Lightning 14827 | -6/Hub_04(d) | Spotted Lightning 14831 | -6/Hub_04(d) | Spotted Lightning 14853 | -6/Hub_04(d) | Core integrity fell below 50% 14874 | -6/Hub_04(d) | Destroyed Lightning 14880 | -6/Hub_04(d) | Destroyed Lightning 14893 | -6/Hub_04(d) | Found Prototype Processor 14897 | -6/Hub_04(d) | Found Prototype Energy Cannon 14919 | -6/Hub_04(d) | Found Exp. EM Shield 14926 | -6/Hub_04(d) | Found Prototype Device 14944 | -6/Hub_04(d) | Garrison activated, responded to threat 14968 | -6/Hub_04(d) | Destroyed Lightning 14984 | -6/Hub_04(d) | Entered Factory 14984 | -5/Factory | Evolved 2 slots: Propulsion x1, Utility x1 14985 | -5/Factory | Identified Exp. Phase Shifter 15030 | -5/Factory | Build established: Scavenger-Mutant 15240 | -5/Factory | Identified exit to Upper Caves 15631 | -5/Factory | Fabricated Powered Armor (x2) 15741 | -5/Factory | Identified Exp. Targeting Computer 15881 | -5/Factory | Lost 3 parts (1n1u1w) 16101 | -5/Factory | Entered Upper Caves 16801 | -5/Upper Caves | Discovered new exit (range 15) 17018 | -5/Upper Caves | Entered another Upper Caves area 17031 | -5/Upper Caves | Discovered new exit (range 14) 17054 | -5/Upper Caves | Attracted the attention of an 0b10 outpost 17178 | -5/Upper Caves | Learned Factory terminal intel 17537 | -5/Upper Caves | Discovered new exit (range 15) 17559 | -5/Upper Caves | Acquired the password to a Derelict Tinkerer's latest research 17564 | -5/Upper Caves | Found Prototype Special Weapon 17574 | -5/Upper Caves | Entered Zhirov 17574 | -5/Zhirov | Discovered new exit (range 3) 17593 | -5/Zhirov | Met Zhirov 17615 | -5/Zhirov | Learned location of Quarantine (-2) 17615 | -5/Zhirov | Learned location of Testing (-3) 17615 | -5/Zhirov | Learned location of Command (-1) 17628 | -5/Zhirov | Zhirov requested help retrieving the SGEMP Prototype 17643 | -5/Zhirov | Found Alien Artifact 17643 | -5/Zhirov | Identified Integrated Dissipator 17643 | -5/Zhirov | Installed Integrated Dissipator, increased core heat dissipation (+20) 17656 | -5/Zhirov | Identified EMDS 17662 | -5/Zhirov | Found Alien Artifact 17787 | -5/Zhirov | Entered Proximity Caves 17947 | -4/Proximity Caves | Attracted the attention of an 0b10 checkpoint 18047 | -4/Proximity Caves | System corruption reached 10% 18186 | -4/Proximity Caves | Learned Research terminal intel 18253 | -4/Proximity Caves | Discovered new exit (range 9) 18373 | -4/Proximity Caves | Entered Factory 18373 | -4/Factory | Evolved 2 slots: Utility x2 18374 | -4/Factory | Loaded intel: 26 terminal locations 18378 | -4/Factory | Discovered new exit (range 14) 18499 | -4/Factory | Lost 9 parts (1p2n4u2w) 18618 | -4/Factory | Loaded intel: 8 recycling unit locations 19035 | -4/Factory | Identified exit to Upper Caves 19035 | -4/Factory | Identified exit to Armory 19374 | -4/Factory | Build established: Scavenger-Assassin 19799 | -4/Factory | Destroyed 7 combat bots 19974 | -4/Factory | Lost 7 parts (1p1n4u1w) 20009 | -4/Factory | Identified Molecular Deconstructor 20024 | -4/Factory | Scrapoids reinforcements arrived? 20052 | -4/Factory | Lost 10 parts (2p4n2u2w) 20055 | -4/Factory | Found Scrap Suit 20116 | -4/Factory | Cargo convoy interrupted 20116 | -4/Factory | Discovered new exit (range 16) 20123 | -4/Factory | First assault squad dispatched 20190 | -4/Factory | Identified exit to Research 20231 | -4/Factory | Entered Upper Caves 20284 | -4/Upper Caves | Core integrity fell below 50% 20300 | -4/Upper Caves | Build established: Scavenger-Scrapper 20304 | -4/Upper Caves | Attracted the attention of an 0b10 checkpoint 20497 | -4/Upper Caves | Encountered a Warlord checkpoint 20640 | -4/Upper Caves | Learned 4 Research zone layouts 20647 | -4/Upper Caves | Learned Research stockpile data 20711 | -4/Upper Caves | Discovered new exit (range 10) 21139 | -4/Upper Caves | Identified exit to Upper Caves 21140 | -4/Upper Caves | Entered another Upper Caves area 21141 | -4/Upper Caves | Discovered exit to Research (range 14) 21231 | -4/Upper Caves | Attracted the attention of an 0b10 outpost 21368 | -4/Upper Caves | Destroyed 7 combat bots 21457 | -4/Upper Caves | Attracted the attention of an 0b10 checkpoint 21709 | -4/Upper Caves | Learned 12 Research zone layouts 21917 | -4/Upper Caves | Discovered new exit (range 7) 21924 | -4/Upper Caves | Identified exit to Warlord 22124 | -4/Upper Caves | Entered Warlord 22156 | -4/Warlord | Discovered new exit (range 8) 22201 | -4/Warlord | System corruption cleaned by Quarantine Array 22399 | -4/Warlord | Found Prototype Reactor 22399 | -4/Warlord | Identified Vortex Chain Reactor 22402 | -4/Warlord | Found Exp. Phase Shifter 22408 | -4/Warlord | Found Prototype Device 22408 | -4/Warlord | Identified System Purifier 22413 | -4/Warlord | Found Prototype Processor 22459 | -4/Warlord | Identified Exp. Armor Integrity Analyzer 22676 | -4/Warlord | Warlord's base attacked by MAIN.C 22779 | -4/Warlord | Found Prototype Energy Gun 22779 | -4/Warlord | Identified Vortex Rifle 22785 | -4/Warlord | Found Vortex Rifle 23026 | -4/Warlord | Warlord forces counterattacked 23031 | -4/Warlord | Opened side exit 23084 | -4/Warlord | Identified exit to Proximity Caves 23086 | -4/Warlord | Entered Proximity Caves 23108 | -3/Proximity Caves | Lost 4 allies 23158 | -3/Proximity Caves | Attracted the attention of an 0b10 checkpoint 23274 | -3/Proximity Caves | Build established: Scavenger-Mutant 23761 | -3/Proximity Caves | Spotted B-86 Titan 23777 | -3/Proximity Caves | Destroyed B-86 Titan 23921 | -3/Proximity Caves | Attracted the attention of an 0b10 outpost 23986 | -3/Proximity Caves | Destroyed 8 combat bots 24559 | -3/Proximity Caves | Lost 5 allies 24857 | -3/Proximity Caves | Discovered exit to Research (range 15) 24926 | -3/Proximity Caves | Entered Research 24926 | -3/Research | Evolved 2 slots: Utility x1, Weapon x1 24927 | -3/Research | Identified exit to Research 24930 | -3/Research | Loaded intel: 23 terminal locations 24950 | -3/Research | Garrison activated, responded to threat 25126 | -3/Research | Revision forces began assault on 0b10 25146 | -3/Research | Loaded intel: 5 recycling unit locations 25229 | -3/Research | Met up with Revision 17++ 25626 | -3/Research | Research terminal network offline 25879 | -3/Research | Scraphulk reinforcements arrived 25992 | -3/Research | Spotted Executioner 25992 | -3/Research | Spotted Striker 25996 | -3/Research | P-80 Master assimilated allied Revision 26016 | -3/Research | Destroyed Executioner 26061 | -3/Research | Found Prototype Device 26063 | -3/Research | Identified Adv. Kinecellerator 26067 | -3/Research | Found Prototype Processor 26069 | -3/Research | Identified Exp. Core Analyzer 26235 | -3/Research | Found Adv. Powered Armor 26338 | -3/Research | Build established: Scavenger-Gunner 26577 | -3/Research | Found Adv. Kinecellerator 26610 | -3/Research | Spotted Striker 26617 | -3/Research | Allies destroyed Striker 26622 | -3/Research | Spotted Striker 26638 | -3/Research | Destroyed Striker 26704 | -3/Research | Spotted Striker 26744 | -3/Research | Spotted Executioner 26746 | -3/Research | Spotted Striker 26755 | -3/Research | Spotted Striker 26757 | -3/Research | Spotted Striker 26761 | -3/Research | Destroyed Executioner 26775 | -3/Research | Destroyed Striker 26778 | -3/Research | Destroyed Striker 26783 | -3/Research | Lost 3 allies 26785 | -3/Research | Spotted Striker 26801 | -3/Research | Identified Transdimensional Reconstructor 26801 | -3/Research | Warped through subspace 26828 | -3/Research | Lost 10 parts (1p1n7u1w) 26980 | -3/Research | Discovered new exit (range 15) 27054 | -3/Research | Entered Testing 27105 | -3/Testing | Found Prototype Ballistic Cannon 27105 | -3/Testing | Identified Perforator 27337 | -3/Testing | System corruption reached 10% 27395 | -3/Testing | Lost 9 parts (1p3n4u1w) 27510 | -3/Testing | Build established: Scavenger-Mutant 27554 | -3/Testing | First assault squad dispatched 27604 | -3/Testing | Found Prototype Ballistic Gun 27604 | -3/Testing | Identified Hyp. Multirail 27637 | -3/Testing | Found Unknown Protection 27637 | -3/Testing | Identified Imp. Powered Armor 27701 | -3/Testing | Spotted Striker 27723 | -3/Testing | Found Prototype Energy Cannon 27723 | -3/Testing | Identified Imp. Potential Cannon 27726 | -3/Testing | Found Prototype Energy Cannon 27726 | -3/Testing | Identified Potential Cannon 27913 | -3/Testing | Garrison activated, responded to threat 27981 | -3/Testing | Found Prototype Device 27992 | -3/Testing | Identified Exp. Hardlight Generator 28306 | -3/Testing | Build established: Scavenger-Tank 28319 | -3/Testing | Discovered exit to Research (range 8) 28433 | -3/Testing | Core integrity fell below 50% 28500 | -3/Testing | Fabricated Prc. Matter Filter? 28509 | -3/Testing | Lost 11 parts (1p4n4u2w) 28512 | -3/Testing | Destroyed 7 combat bots 28739 | -3/Testing | Destroyed 7 combat bots 28804 | -3/Testing | Build established: Scavenger-Mutant 28919 | -3/Testing | Spotted PL-KIO7Z8AUE5 28926 | -3/Testing | Destroyed PL-KIO7Z8AUE5 28933 | -3/Testing | Found Exp. Core Analyzer 29058 | -3/Testing | Garrison activated, responded to threat 29129 | -3/Testing | System corruption reached 30% 29158 | -3/Testing | Destroyed 9 combat bots 29171 | -3/Testing | Lost 10 parts (1p3n4u2w) 29201 | -3/Testing | Found Prototype Hackware 29201 | -3/Testing | Identified Ghost Barrier 29254 | -3/Testing | Core integrity fell below 20% 29256 | -3/Testing | Scanned by Researcher 29289 | -3/Testing | Destroyed by G-67 Veteran with Field Laser Last Messages --------------- 29277_ Slug penetrates L-61 Swordsman. 29277_ L-61 Swordsman destroyed. 29277_ Penetrated by Slug. 29277_ Rnf. Antimatter Reactor destroyed. 29279_ Penetrated by Slug. 29282_ U-05 Engineer lays Concrete. 29282_ Structural Scanner destroyed. 29282_ Slug penetrates H-77 Assassin. 29282_ Slug penetrates Wall. 29282_ Slug penetrates P-80 Master. 29283_ ALERT: Construction progress impeded, dispatching reinforcements to local area. 29283_ U-05 Engineer sends out distress signal. 29284_ Penetrated by Slug. 29284_ Helical Railgun destroyed. 29286_ Penetrated by Slug. 29286_ Dropped Hcp. Storage Unit. 29287_ Dropped Helical Railgun. 29288_ Dropped Prc. Energy Filter. 29288_ Reaction Chamber disabled. Map ----- +----------------------------------------------------+ | "" ###### ###### ????????## ######## =! | | "" ######+##+###### ????????## + " | | " ### # ? ????????? # # | | ### # ##?????? # + | | """ # # # ##?????? # # | | " " # " # ##??"""? ######## # | | "" " # = # ##??""" ######## # " | | ### % + ##??""" #?????## # | | ######## " """ # ## ?""" ##?##### # | | ####### " """" + ##!?""" ##?##### # | | ##???## """ """ # ## ? ##?# ### # | | ##???## # ## """ #### ### # | | ##???## # ## """ ######## #### | | ##???## # ## """ # #### | | ##???##########/#### ## """ # ##?? | | ##???########## #### + """ ; u #### | | ##???????????## #### ## # #### | | !##???????????## #### ## # ######## ## | | ###?????????#### ## # ## = ; ########### | | ###?????????#### #### #;; A ;;; !# ! # | | ????????????## ^u [ =[ %$ [[=[ !=; = ! " | | ????????????## ^ !!%=*! h=!!|[!# [ ! " | | ????????????## =|=[*g![[* [ =!hg%=!==%#! * ! | | ????????????## !%!^!%!!![ ![! pg[g[*=+=! *! " | | ????????????### #######/*;;;;*|###=!< #=! !! [ " | | S???????????### #### ]![@ ; ####= # ! # | | ""???????????## #### " " ######*/ *#! # | | ""???????????## #### * """ ##################### | | ?????????????## #### """ ##?################## | | ?????????????# ??## ##???????#########??? | | ?????????????? ??## ##??????????????????? | | ???????????? ! "???# " " ##??????????????????? | | ????????????## ???#! "R" ##??????????????????? | | ???????????? ####???# """ ##??????????????????? | | ??????????"""####???###########??????????????????? | | ??????????"""????????????????????????????????????? | | ???????????R"????????????????????????????????????? | | ??????????"""????????????????????????????????????? | | ??????????""?????????????????????????????????????? | | ?????????????????????????????????????????????????? | | ?????????????????????????????????????????????????? | | ?????????????????????????????????????????????????? | | ?????????????????????????????????????????????????? | | | | | | | | | | | | | | | +----------------------------------------------------+ Best States ------------- Heat Dissipation 116 Energy Generation 55 Energy Capacity 700 Matter Stores 300 Matter Capacity 300 Sight Range 20 Robot Scan Range 16 Terrain Scan Range 16 Terrain Scan Density 10 Jamming Range 14 Armor Coverage 1700 Resistance: KI 30 Resistance: TH 30 Resistance: EM 75 Propulsion Shielding 33 Weapon Shielding 90 Weapon Cycling 20 Phase Shifting 20 Evasion (%) 64 Targeting Accuracy 12 Target Analysis 8 Core Analysis 8 Armor Integrity Analysis 50 Recoil Reduction 4 Matter Filtering 50 Energy Filtering 65 Particle Charging 30 Kinecelleration 50 Salvage Targeting 4 Defensive Hacking 20 Item Schematics ----------------- Powered Armor | -6/Factory | Hacked Hvy. Insulated Plating | -6/Factory | Hacked Assault Drone Bay | -5/Zhirov | Free Exp. Heat Sink | -5/Zhirov | Free Exp. Optical Array | -5/Zhirov | Free Imp. Arc Thrower | -5/Zhirov | Free Nova Cannon | -4/Factory | Hacked Exp. EM Shield | -4/Factory | Scanalyzed Prc. Matter Filter | -3/Testing | Archive Enh. Biometal Leg | -3/Testing | Archive Exp. Matter Compressor | -3/Testing | Archive Enh. Coil Gun | -3/Testing | Archive Exp. Power Amplifier | -3/Testing | Archive System Purifier | -3/Testing | Archive Kinetic Spear | -3/Testing | Archive Helical Railgun | -3/Testing | Scanalyzed Robot Schematics ------------------ G-67 Veteran | -3/Testing | Archive R-06 Scavenger | -3/Testing | Archive B-74 Champion | -3/Testing | Archive A-02 Transporter | -3/Testing | Archive L-61 Swordsman | -3/Testing | Archive Fabricated ------------ Powered Armor | x2 | -5/Factory Prc. Matter Filter | x1 | -3/Testing Repaired ---------- Nothing Alien Tech Used ----------------- Integrated Dissipator Transdimensional Reconstructor Achievements -------------- None Challenges ------------ None Game ------ Seed SpreadDispersionBay Manual? 0 Play Time 05:36:55 Cumulative 430.2 hours Start 2025.06.06 @ 00:02:01 End 2025.06.06 @ 16:32:29 Sessions 3 Manual Loads 0 Difficulty Rogue Special Mode None Game No. 216 Rogue 153 Adventurer 63 Explorer 0 Win Type - Total 9 Types 8/0/0/1/0/0/0/0/0/0 Lore% 87 Gallery% 79 Achievement% 66 Wizard Run 0 Options --------- Layout 0 ASCII 0 Keyboard 1 Movement Numpad Keybinds 0 Fullscreen 1 Font 18/Terminus Map View 76x50 Zoom Use 0% Tactical HUD 1 Map Filters NONE Filters NONE Steam 1 RUN: 824a0ab3-d163-4cd3-af87-0540fb5a6bb5